[Event "Cesenatico Open 2019"]
[Site "Cesenatico"]
[Date "2019.09.04"]
[Round "1"]
[White "Dragojlovic, Andjelko"]
[Black "Gerhard, Walter"]
[Result "1-0"]
[ECO "C00"]
[WhiteElo "2293"]
[BlackElo "1997"]
[Annotator "ChessBase"]
[PlyCount "59"]
[EventDate "2019.09.01"]
[EventType "swiss"]
[EventCountry "ITA"]
[SourceTitle "playchess.com"]
[Source "ChessBase"]
[SourceQuality "1"]
[TimeControl "40/6000:900"]

1. e4 {[%emt 0:05:00]} e6 {[%emt 0:00:00]} 2. d3 {[%emt 0:00:00]} d5 {[%emt 0:05:00]} 3. Nd2 {[%emt 0:00:00]} Nf6 {[%emt 0:00:00]} 4. Ngf3 {[%emt 0:00:00]} c5 {[%emt 0:00:00]} 5. g3 {[%emt 0:00:00]} Nc6 {[%emt 0:00:00]} 6. Bg2 Be7 {[%emt 0:00:00]} 7. O-O {[%emt 0:00:00]} O-O {[%emt 0:00:00]} 8. Re1 b5 {[%emt 0:03:00]} 9. e5 {[%emt 0:00:00]} Nd7 {[%emt 0:00:00]} 10. Nf1 {[%emt 0:00:00]} a5 {[%emt 0:04:00]} 11. h4 {[%emt 0:00:00]} a4 12. a3 {[%emt 0:00:00]} b4 {[%emt 0:09:00]} 13. N1h2 {[%emt 0:00:00]} bxa3 14. bxa3 {[%emt 0:00:00]} f6 {[%emt 0:03:00]} 15. exf6 {[%emt 0:19:00]} Bxf6 {[%emt 0:00:00]} 16. Bg5 {[%emt 0:00:00]} Qc7 {[%emt 0:05:00]} 17. Bxf6 {[%emt 0:00:00]} Nxf6 {[%emt 0:00:00]} 18. Ng5 {[%emt 0:00:00]} Nd4 {[%emt 0:00:00]} 19. c3 {[%emt 0:00:00]} Nb3 {[%emt 0:08:00]} 20. Ra2 {[%emt 0:00:00]} Ra6 {[%emt 0:01:00]} 21. Rae2 {[%emt 0:00:00]} Qd6 {[%emt 0:17:00]} 22. Bh3 {[%emt 0:37:00]} c4 {[%emt 0:06:00]} 23. Bxe6+ {[%emt 0:00:00]} Kh8 {[%emt 0:01:00]} 24. Nf7+ {[%emt 0:00:00]} Rxf7 {[%emt 0:00:00]} 25. Bxf7 {[%emt 0:00:00]} g6 {[%emt 0:00:00]} 26. dxc4 {[%emt 0:00:00]} dxc4 {[%emt 0:08:00]} 27. Bxc4 {[%emt 0:00:00]} Qxd1 {[%emt 0:00:00]} 28. Rxd1 {[%emt 0:00:00]} Rc6 {[%emt 0:02:00]} 29. Bb5 Rxc3 {[%emt 0:01:00]} 30. Bxa4 1-0

[Event "Cesenatico Open 2019"]
[Site "Cesenatico"]
[Date "2019.09.04"]
[Round "1"]
[White "Loiacono, Antonio"]
[Black "Pecci, William"]
[Result "1-0"]
[ECO "C49"]
[WhiteElo "2282"]
[BlackElo "1973"]
[Annotator "ChessBase"]
[PlyCount "75"]
[EventDate "2019.09.01"]
[EventType "swiss"]
[EventCountry "ITA"]
[SourceTitle "playchess.com"]
[Source "ChessBase"]
[SourceQuality "1"]
[TimeControl "40/6000:900"]

1. e4 {[%emt 0:00:00]} e5 {[%emt 0:00:00]} 2. Nf3 {[%emt 0:00:00]} Nc6 {[%emt 0:00:00]} 3. Nc3 {[%emt 0:00:00]} Nf6 {[%emt 0:00:00]} 4. Bb5 {[%emt 0:00:00]} Bb4 {[%emt 0:00:00]} 5. O-O {[%emt 0:00:00]} O-O {[%emt 0:00:00]} 6. d3 d6 {[%emt 0:00:00]} 7. Ne2 {[%emt 0:00:00]} Ne7 {[%emt 0:00:00]} 8. c3 {[%emt 0:00:00]} Ba5 {[%emt 0:00:00]} 9. Ng3 {[%emt 0:00:00]} c6 {[%emt 0:00:00]} 10. Ba4 {[%emt 0:00:00]} Ng6 {[%emt 0:00:00]} 11. d4 {[%emt 0:00:00]} Qc7 {[%emt 0:03:00]} 12. Bg5 {[%emt 0:00:00]} Be6 {[%emt 0:11:00]} 13. Nh4 {[%emt 0:12:00]} Nxh4 14. Bxh4 {[%emt 0:00:00]} Ne8 {[%emt 0:09:00]} 15. Bb3 {[%emt 0:26:00]} Bxb3 {[%emt 0:15:00]} 16. axb3 {[%emt 0:00:00]} Bb6 {[%emt 0:01:00]} 17. Kh1 {[%emt 0:00:00]} f6 {[%emt 0:04:00]} 18. Nf5 {[%emt 0:08:00]} g6 {[%emt 0:03:00]} 19. Ne3 {[%emt 0:00:00]} Ng7 {[%emt 0:04:00]} 20. dxe5 {[%emt 0:04:00]} dxe5 {[%emt 0:00:00]} 21. Nc4 {[%emt 0:00:00]} Rad8 {[%emt 0:04:00]} 22. Qc2 g5 {[%emt 0:03:00]} 23. Bg3 {[%emt 0:03:00]} Rd7 {[%emt 0:02:00]} 24. f3 {[%emt 0:01:00]} a6 {[%emt 0:12:00]} 25. b4 {[%emt 0:02:00]} Ne6 {[%emt 0:00:00]} 26. Qb3 {[%emt 0:01:00]} Re8 {[%emt 0:02:00]} 27. Rad1 {[%emt 0:03:00]} Rxd1 {[%emt 0:00:00]} 28. Rxd1 {[%emt 0:00:00]} Kg7 {[%emt 0:01:00]} 29. Nd6 Re7 {[%emt 0:02:00]} 30. Nf5+ {[%emt 0:00:00]} Kf7 {[%emt 0:00:00]} 31. Nxe7 {[%emt 0:00:00]} Kxe7 {[%emt 0:00:00]} 32. Qc2 {[%emt 0:01:00]} h6 33. Bf2 {[%emt 0:00:00]} Bxf2 {[%emt 0:02:00]} 34. Qxf2 {[%emt 0:17:00]} Nf4 {[%emt 0:00:00]} 35. g3 {[%emt 0:00:00]} Ne6 {[%emt 0:00:00]} 36. Qa7 {[%emt 0:00:00]} Kf7 {[%emt 0:00:00]} 37. Qa8 {[%emt 0:00:00]} h5 {[%emt 0:02:00]} 38. Qh8 {[%emt 0:00:00]} 1-0

[Event "Cesenatico Open 2019"]
[Site "Cesenatico"]
[Date "2019.09.04"]
[Round "1"]
[White "Guerini, Silvia jr"]
[Black "Loiacono, Leonardo"]
[Result "0-1"]
[ECO "C54"]
[WhiteElo "1974"]
[BlackElo "2293"]
[Annotator "ChessBase"]
[PlyCount "103"]
[EventDate "2019.09.01"]
[EventType "swiss"]
[EventCountry "ITA"]
[SourceTitle "playchess.com"]
[Source "ChessBase"]
[SourceQuality "1"]
[TimeControl "40/6000:900"]

1. e4 {[%emt 0:00:00]} e5 {[%emt 0:00:00]} 2. Nf3 {[%emt 0:00:00]} Nc6 {[%emt 0:00:00]} 3. Bc4 {[%emt 0:00:00]} Bc5 {[%emt 0:00:00]} 4. d3 {[%emt 0:00:00]} Nf6 5. Nbd2 {[%emt 0:00:00]} O-O {[%emt 0:00:00]} 6. O-O d6 {[%emt 0:00:00]} 7. c3 {[%emt 0:00:00]} a5 {[%emt 0:00:00]} 8. Bb3 {[%emt 0:00:00]} h6 {[%emt 0:00:00]} 9. h3 {[%emt 0:00:00]} Re8 {[%emt 0:01:00]} 10. Re1 Be6 {[%emt 0:09:00]} 11. Bc2 {[%emt 0:02:00]} Ba7 {[%emt 0:04:00]} 12. Nf1 {[%emt 0:01:00]} d5 {[%emt 0:09:00]} 13. exd5 {[%emt 0:04:00]} Qxd5 14. Ng3 {[%emt 0:05:00]} b5 {[%emt 0:15:00]} 15. Nh4 a4 {[%emt 0:00:00]} 16. Nh5 {[%emt 0:28:00]} Qd8 {[%emt 0:17:00]} 17. Qf3 Nxh5 {[%emt 0:01:00]} 18. Qxh5 {[%emt 0:14:00]} Qf6 19. Be3 {[%emt 0:00:00]} b4 {[%emt 0:06:00]} 20. Bxa7 {[%emt 0:10:00]} Rxa7 21. Qf3 {[%emt 0:03:00]} Qxf3 {[%emt 0:03:00]} 22. Nxf3 {[%emt 0:00:00]} a3 {[%emt 0:02:00]} 23. b3 {[%emt 0:04:00]} bxc3 {[%emt 0:12:00]} 24. Nxe5 {[%emt 0:09:00]} Nb4 {[%emt 0:01:00]} 25. Rec1 {[%emt 0:01:42]} Bxh3 {[%emt 0:05:54]} 26. d4 {[%emt 0:04:12]} Bc8 {[%emt 0:05:25]} 27. Bd1 {[%emt 0:06:41]} c5 {[%emt 0:01:16]} 28. Nf3 {[%emt 0:00:00]} cxd4 {[%emt 0:00:00]} 29. Nxd4 {[%emt 0:00:00]} Re1+ {[%emt 0:03:01]} 30. Kh2 {[%emt 0:04:21]} Rc7 {[%emt 0:01:20]} 31. Nb5 {[%emt 0:00:00]} Rc5 {[%emt 0:00:00]} 32. Rxc3 {[%emt 0:00:00]} Rxc3 {[%emt 0:00:00]} 33. Nxc3 Bf5 {[%emt 0:00:03]} 34. Nb5 {[%emt 0:01:16]} g6 {[%emt 0:00:57]} 35. Nxa3 {[%emt 0:00:00]} Nc2 {[%emt 0:00:37]} 36. Nxc2 {[%emt 0:00:00]} Bxc2 {[%emt 0:00:00]} 37. Bxc2 {[%emt 0:00:18]} Rxa1 {[%emt 0:00:00]} 38. a4 {[%emt 0:00:00]} Ra2 {[%emt 0:00:00]} 39. Be4 {[%emt 0:00:00]} Rxf2 {[%emt 0:00:00]} 40. Kg3 {[%emt 0:00:00]} Rb2 {[%emt 0:00:00]} 41. Bd5 {[%emt 0:14:33]} Kf8 {[%emt 0:00:00]} 42. Kf4 {[%emt 0:00:00]} Ke7 {[%emt 0:00:00]} 43. Ke5 {[%emt 0:00:00]} f6+ {[%emt 0:05:59]} 44. Kd4 {[%emt 0:00:00]} Kd6 {[%emt 0:00:00]} 45. Kc4 {[%emt 0:00:00]} Rc2+ {[%emt 0:00:00]} 46. Kd3 {[%emt 0:00:00]} Ra2 {[%emt 0:08:24]} 47. Kc4 {[%emt 0:00:00]} Rc2+ {[%emt 0:00:00]} 48. Kd3 {[%emt 0:00:00]} Rf2 {[%emt 0:00:00]} 49. Bf3 {[%emt 0:00:00]} h5 {[%emt 0:00:00]} 50. Kc4 {[%emt 0:00:00]} Rxf3 {[%emt 0:00:00]} 51. gxf3 {[%emt 0:00:00]} h4 {[%emt 0:00:00]} 52. Kd4 {[%emt 0:00:00]} 0-1

[Event "Cesenatico Open 2019"]
[Site "Cesenatico"]
[Date "2019.09.04"]
[Round "1"]
[White "Miotto, Alberto"]
[Black "Stromboli, Carlo"]
[Result "0-1"]
[ECO "A35"]
[WhiteElo "1950"]
[BlackElo "2270"]
[Annotator "ChessBase"]
[PlyCount "108"]
[EventDate "2019.09.01"]
[EventType "swiss"]
[EventCountry "ITA"]
[SourceTitle "playchess.com"]
[Source "ChessBase"]
[SourceQuality "1"]
[TimeControl "40/6000:900"]

1. Nf3 {[%emt 0:00:00]} c5 {[%emt 0:01:00]} 2. c4 {[%emt 0:00:00]} Nc6 {[%emt 0:00:00]} 3. Nc3 {[%emt 0:00:00]} g6 {[%emt 0:01:00]} 4. e3 {[%emt 0:00:00]} Bg7 5. d4 {[%emt 0:00:00]} cxd4 {[%emt 0:03:00]} 6. exd4 d6 {[%emt 0:00:00]} 7. d5 {[%emt 0:00:00]} Ne5 {[%emt 0:03:00]} 8. Nxe5 {[%emt 0:09:00]} Bxe5 {[%emt 0:01:00]} 9. Bd3 {[%emt 0:00:00]} Bd7 {[%emt 0:16:00]} 10. Be3 {[%emt 0:00:00]} Qa5 {[%emt 0:07:00]} 11. Qb3 {[%emt 0:04:00]} Nf6 12. h3 {[%emt 0:05:00]} O-O {[%emt 0:25:00]} 13. Bd2 {[%emt 0:21:00]} Qc5 14. Ne2 {[%emt 0:04:00]} Bd4 {[%emt 0:26:36]} 15. Nxd4 {[%emt 0:40:10]} Qxd4 {[%emt 0:00:00]} 16. Qc3 {[%emt 0:00:00]} Qh4 {[%emt 0:02:13]} 17. Be3 {[%emt 0:00:00]} b5 {[%emt 0:06:13]} 18. Qd4 {[%emt 0:00:00]} Qxd4 {[%emt 0:00:00]} 19. Bxd4 {[%emt 0:00:00]} bxc4 {[%emt 0:03:25]} 20. Bxc4 Rfc8 {[%emt 0:01:09]} 21. b3 {[%emt 0:00:00]} Ne4 {[%emt 0:00:00]} 22. Ke2 {[%emt 0:00:00]} Rc7 {[%emt 0:02:34]} 23. Ke3 {[%emt 0:15:54]} Nc5 {[%emt 0:00:00]} 24. Rhe1 {[%emt 0:00:00]} Rac8 {[%emt 0:00:00]} 25. Bxc5 {[%emt 0:00:00]} Rxc5 {[%emt 0:00:00]} 26. Kd4 {[%emt 0:00:00]} Kf8 {[%emt 0:00:00]} 27. a4 {[%emt 0:00:00]} a5 {[%emt 0:00:00]} 28. f4 {[%emt 0:00:13]} Re8 {[%emt 0:00:07]} 29. Rac1 {[%emt 0:00:00]} Rec8 {[%emt 0:00:00]} 30. Rc3 {[%emt 0:00:00]} Rb8 {[%emt 0:00:00]} 31. Rce3 {[%emt 0:00:00]} Rb4 {[%emt 0:00:02]} 32. Rc1 {[%emt 0:00:00]} e6 {[%emt 0:00:00]} 33. dxe6 Bxe6 {[%emt 0:00:00]} 34. Rec3 {[%emt 0:00:00]} Rc7 {[%emt 0:00:00]} 35. Kd3 {[%emt 0:00:00]} d5 {[%emt 0:00:01]} 36. Bb5 Rxc3+ {[%emt 0:00:00]} 37. Rxc3 {[%emt 0:00:00]} d4 {[%emt 0:00:00]} 38. Rc7 {[%emt 0:00:00]} Bxb3 {[%emt 0:00:00]} 39. Ra7 {[%emt 0:00:00]} Bxa4 40. Bc4 {[%emt 0:00:00]} Bc2+ {[%emt 0:00:07]} 41. Kxd4 Bb3 {[%emt 0:00:49]} 42. Rxf7+ {[%emt 0:00:00]} Ke8 {[%emt 0:00:00]} 43. Rc7 {[%emt 0:00:00]} Rxc4+ {[%emt 0:12:40]} 44. Rxc4 {[%emt 0:13:15]} Bxc4 {[%emt 0:00:00]} 45. Kxc4 {[%emt 0:00:00]} Ke7 {[%emt 0:00:00]} 46. Kb5 {[%emt 0:00:00]} Ke6 {[%emt 0:00:00]} 47. g4 {[%emt 0:00:00]} Kd5 48. Kxa5 {[%emt 0:00:00]} Ke4 {[%emt 0:00:00]} 49. f5 gxf5 {[%emt 0:00:00]} 50. gxf5 {[%emt 0:00:00]} Kxf5 {[%emt 0:00:00]} 51. Kb4 {[%emt 0:00:00]} Kg5 {[%emt 0:00:00]} 52. Kc3 {[%emt 0:00:00]} Kh4 {[%emt 0:00:00]} 53. Kd3 {[%emt 0:00:00]} Kxh3 {[%emt 0:00:00]} 54. Ke4 {[%emt 0:00:00]} Kg3 {[%emt 0:00:00]} 0-1

[Event "Cesenatico Open 2019"]
[Site "Cesenatico"]
[Date "2019.09.04"]
[Round "2"]
[White "Genocchio, Daniele"]
[Black "Medici, Simone"]
[Result "1-0"]
[ECO "B28"]
[WhiteElo "2354"]
[BlackElo "2201"]
[Annotator "ChessBase"]
[PlyCount "77"]
[EventDate "2019.09.01"]
[EventType "swiss"]
[EventCountry "ITA"]
[SourceTitle "playchess.com"]
[Source "ChessBase"]
[SourceQuality "1"]
[TimeControl "40/6000:900"]

1. e4 {[%emt 0:10:00]} a6 {[%emt 0:00:00]} 2. d4 {[%emt 0:00:00]} e6 {[%emt 0:11:00]} 3. Bd3 {[%emt 0:01:00]} d5 {[%emt 0:00:00]} 4. e5 {[%emt 0:00:00]} c5 5. c3 {[%emt 0:00:00]} Nc6 {[%emt 0:00:00]} 6. Nf3 {[%emt 0:01:00]} Bd7 {[%emt 0:00:00]} 7. O-O {[%emt 0:01:00]} cxd4 {[%emt 0:00:00]} 8. cxd4 Nge7 {[%emt 0:16:00]} 9. Nc3 {[%emt 0:15:00]} b5 {[%emt 0:00:00]} 10. Be3 {[%emt 0:13:00]} Na5 {[%emt 0:09:00]} 11. Ng5 {[%emt 0:20:00]} h6 {[%emt 0:26:00]} 12. Nh7 {[%emt 0:01:00]} Nc4 {[%emt 0:00:00]} 13. Nxf8 {[%emt 0:01:00]} Kxf8 {[%emt 0:00:00]} 14. Bc1 {[%emt 0:01:00]} b4 {[%emt 0:00:00]} 15. Ne2 Qb6 {[%emt 0:02:00]} 16. a4 {[%emt 0:07:00]} Nf5 {[%emt 0:13:00]} 17. b3 {[%emt 0:00:00]} Na5 {[%emt 0:00:00]} 18. Be3 {[%emt 0:01:00]} Rc8 {[%emt 0:04:41]} 19. Rb1 {[%emt 0:09:41]} Nc6 {[%emt 0:00:00]} 20. Rc1 {[%emt 0:05:41]} g5 {[%emt 0:05:41]} 21. Ng3 {[%emt 0:01:57]} Nce7 {[%emt 0:04:39]} 22. Nh5 {[%emt 0:02:42]} Rc3 {[%emt 0:05:08]} 23. Nf6 {[%emt 0:06:39]} Be8 {[%emt 0:01:31]} 24. Qd2 {[%emt 0:00:00]} Rxb3 {[%emt 0:00:00]} 25. g4 {[%emt 0:00:00]} Nh4 {[%emt 0:00:40]} 26. f4 {[%emt 0:00:47]} Nc6 {[%emt 0:00:00]} 27. fxg5 {[%emt 0:00:00]} hxg5 {[%emt 0:00:00]} 28. Qf2 {[%emt 0:00:00]} Rxd3 {[%emt 0:00:00]} 29. Nd7+ {[%emt 0:00:00]} Kg8 {[%emt 0:00:04]} 30. Nxb6 {[%emt 0:00:00]} Rh7 {[%emt 0:00:00]} 31. Nc8 {[%emt 0:00:00]} Nxd4 {[%emt 0:00:01]} 32. Bxd4 {[%emt 0:00:00]} Bxa4 {[%emt 0:00:01]} 33. Nb6 {[%emt 0:00:00]} Nf3+ {[%emt 0:00:00]} 34. Qxf3 {[%emt 0:00:00]} Rxf3 {[%emt 0:00:00]} 35. Rxf3 Bb5 {[%emt 0:00:00]} 36. Rc8+ {[%emt 0:00:00]} Kg7 37. Rc7 {[%emt 0:00:00]} Be8 {[%emt 0:00:00]} 38. Nc8 Rh4 {[%emt 0:00:02]} 39. h3 1-0

[Event "Cesenatico Open 2019"]
[Site "Cesenatico"]
[Date "2019.09.04"]
[Round "2"]
[White "Loiacono, Leonardo"]
[Black "Voltolini, Giuseppe"]
[Result "1/2-1/2"]
[ECO "D34"]
[WhiteElo "2293"]
[BlackElo "2115"]
[Annotator "ChessBase"]
[PlyCount "129"]
[EventDate "2019.09.01"]
[EventType "swiss"]
[EventCountry "ITA"]
[SourceTitle "playchess.com"]
[Source "ChessBase"]
[SourceQuality "1"]
[TimeControl "40/6000:900"]

1. d4 {[%emt 0:00:00]} d5 {[%emt 0:00:00]} 2. c4 {[%emt 0:00:00]} e6 {[%emt 0:00:00]} 3. Nc3 {[%emt 0:00:00]} c5 {[%emt 0:00:00]} 4. cxd5 {[%emt 0:00:00]} exd5 {[%emt 0:00:00]} 5. Nf3 {[%emt 0:00:00]} Nc6 {[%emt 0:00:00]} 6. g3 Nf6 {[%emt 0:00:00]} 7. Bg2 {[%emt 0:00:00]} Be7 {[%emt 0:00:00]} 8. O-O O-O {[%emt 0:00:00]} 9. Bg5 {[%emt 0:00:00]} c4 {[%emt 0:00:00]} 10. Ne5 {[%emt 0:00:00]} Be6 {[%emt 0:01:00]} 11. Nxc6 {[%emt 0:06:00]} bxc6 {[%emt 0:18:00]} 12. Qc2 {[%emt 0:13:00]} h6 {[%emt 0:00:00]} 13. Bf4 {[%emt 0:01:00]} Qb6 {[%emt 0:01:00]} 14. Rfd1 {[%emt 0:04:00]} Rfd8 {[%emt 0:11:00]} 15. b3 {[%emt 0:10:00]} cxb3 {[%emt 0:03:00]} 16. axb3 {[%emt 0:00:00]} Rd7 {[%emt 0:03:00]} 17. Na4 {[%emt 0:00:00]} Qb5 {[%emt 0:11:00]} 18. Bf1 {[%emt 0:03:00]} g5 {[%emt 0:00:00]} 19. Bd2 {[%emt 0:01:00]} Ne4 {[%emt 0:11:00]} 20. Nc3 {[%emt 0:10:00]} Nxc3 {[%emt 0:00:00]} 21. Bxc3 {[%emt 0:00:00]} Rb7 {[%emt 0:06:00]} 22. Rdb1 Qb6 {[%emt 0:00:00]} 23. e3 {[%emt 0:11:00]} Qc7 {[%emt 0:07:00]} 24. Ba6 {[%emt 0:01:00]} Rbb8 {[%emt 0:00:00]} 25. Bd3 {[%emt 0:00:00]} Qd7 26. Bb2 {[%emt 0:03:00]} Rb6 {[%emt 0:04:00]} 27. Bc3 {[%emt 0:14:00]} Rbb8 {[%emt 0:00:00]} 28. Be1 {[%emt 0:00:00]} Rb7 {[%emt 0:00:00]} 29. Ra6 {[%emt 0:00:00]} Rb6 {[%emt 0:00:00]} 30. Ra2 {[%emt 0:00:00]} Rb7 {[%emt 0:00:00]} 31. Bd2 {[%emt 0:03:47]} Bh3 {[%emt 0:08:16]} 32. f3 {[%emt 0:03:10]} Be6 {[%emt 0:00:00]} 33. Bc1 {[%emt 0:00:00]} Rab8 {[%emt 0:00:00]} 34. Bd2 {[%emt 0:00:00]} Ra8 {[%emt 0:01:10]} 35. Be1 {[%emt 0:02:43]} Rab8 {[%emt 0:00:00]} 36. Ba5 {[%emt 0:00:00]} Ra8 {[%emt 0:00:00]} 37. Kf2 {[%emt 0:02:35]} Bb4 {[%emt 0:06:44]} 38. Bxb4 {[%emt 0:02:33]} Rxb4 {[%emt 0:00:00]} 39. Qc5 {[%emt 0:00:00]} Qb7 {[%emt 0:00:00]} 40. Bc2 {[%emt 0:00:00]} Rb5 {[%emt 0:01:45]} 41. Qc3 {[%emt 0:17:45]} a5 {[%emt 0:15:38]} 42. Rh1 {[%emt 0:00:00]} Qb6 {[%emt 0:00:00]} 43. g4 {[%emt 0:00:00]} Kf8 {[%emt 0:00:00]} 44. h4 {[%emt 0:00:00]} Ke7 45. hxg5 {[%emt 0:00:00]} hxg5 {[%emt 0:00:00]} 46. Rh5 Rg8 {[%emt 0:00:00]} 47. Ra3 {[%emt 0:00:00]} c5 {[%emt 0:00:00]} 48. Ra4 {[%emt 0:00:00]} cxd4 {[%emt 0:00:00]} 49. Qxd4 {[%emt 0:00:00]} Qxd4 {[%emt 0:00:00]} 50. Rxd4 {[%emt 0:00:00]} Rc5 {[%emt 0:00:00]} 51. Bd1 {[%emt 0:00:00]} Kf6 {[%emt 0:00:00]} 52. Rh6+ {[%emt 0:00:00]} Kg7 {[%emt 0:00:00]} 53. Rh2 {[%emt 0:00:00]} Rh8 {[%emt 0:00:00]} 54. Rxh8 {[%emt 0:00:00]} Kxh8 {[%emt 0:00:00]} 55. f4 {[%emt 0:00:00]} gxf4 {[%emt 0:00:00]} 56. exf4 {[%emt 0:00:00]} f6 {[%emt 0:00:00]} 57. f5 {[%emt 0:00:00]} Bf7 {[%emt 0:00:00]} 58. Ke3 {[%emt 0:00:00]} Kg7 {[%emt 0:00:00]} 59. Kf4 {[%emt 0:00:00]} Rb5 {[%emt 0:00:00]} 60. Ke3 {[%emt 0:00:00]} Kh6 {[%emt 0:00:00]} 61. Rd3 {[%emt 0:00:00]} Rb4 {[%emt 0:00:00]} 62. Rd4 {[%emt 0:02:42]} Rb5 {[%emt 0:00:00]} 63. Kd3 {[%emt 0:00:48]} Kg5 {[%emt 0:00:00]} 64. Ra4 {[%emt 0:00:00]} d4 {[%emt 0:00:00]} 65. Ra3 {[%emt 0:00:00]} 1/2-1/2

[Event "Cesenatico Open 2019"]
[Site "Cesenatico"]
[Date "2019.09.04"]
[Round "2"]
[White "Stromboli, Carlo"]
[Black "Marzano, Carlo"]
[Result "1/2-1/2"]
[ECO "C56"]
[WhiteElo "2270"]
[BlackElo "2109"]
[Annotator "ChessBase"]
[PlyCount "59"]
[EventDate "2019.09.01"]
[EventType "swiss"]
[EventCountry "ITA"]
[SourceTitle "playchess.com"]
[Source "ChessBase"]
[SourceQuality "1"]
[TimeControl "40/6000:900"]

1. e4 {[%emt 0:04:00]} e5 {[%emt 0:00:00]} 2. Nf3 {[%emt 0:01:00]} Nc6 {[%emt 0:06:00]} 3. d4 {[%emt 0:01:00]} exd4 {[%emt 0:00:00]} 4. Bc4 {[%emt 0:02:00]} Nf6 {[%emt 0:00:00]} 5. O-O {[%emt 0:02:00]} Nxe4 {[%emt 0:00:00]} 6. Re1 {[%emt 0:00:00]} d5 {[%emt 0:00:00]} 7. Bxd5 {[%emt 0:04:00]} Qxd5 {[%emt 0:00:00]} 8. Nc3 {[%emt 0:00:00]} Qh5 {[%emt 0:00:00]} 9. Nxe4 {[%emt 0:02:00]} Be6 10. Bg5 {[%emt 0:04:00]} Bd6 {[%emt 0:00:00]} 11. Nxd6+ {[%emt 0:07:00]} cxd6 12. Bf4 {[%emt 0:03:00]} Qd5 {[%emt 0:00:00]} 13. c3 O-O {[%emt 0:00:00]} 14. Nxd4 {[%emt 0:08:00]} Nxd4 {[%emt 0:00:00]} 15. Qxd4 Qxd4 {[%emt 0:00:00]} 16. cxd4 {[%emt 0:00:00]} d5 {[%emt 0:00:00]} 17. Re3 {[%emt 0:00:00]} Rfc8 {[%emt 0:00:00]} 18. Rb3 {[%emt 0:06:00]} b6 19. Rg3 {[%emt 0:00:00]} f6 {[%emt 0:00:00]} 20. Re1 Kf7 {[%emt 0:47:00]} 21. Rge3 {[%emt 0:11:00]} Rc6 {[%emt 0:00:00]} 22. h3 h5 {[%emt 0:00:00]} 23. Ra3 {[%emt 0:16:00]} Rc4 {[%emt 0:00:00]} 24. Rc1 {[%emt 0:19:00]} Rxd4 {[%emt 0:00:00]} 25. Be3 {[%emt 0:03:31]} Rb4 {[%emt 0:00:00]} 26. Rc7+ {[%emt 0:00:00]} Kg8 {[%emt 0:00:00]} 27. Rc6 Kf7 {[%emt 0:00:00]} 28. Rc7+ {[%emt 0:05:05]} Kg8 {[%emt 0:00:00]} 29. Rc6 {[%emt 0:00:00]} Kf7 {[%emt 0:00:00]} 30. Rc7+ {[%emt 0:00:00]} 1/2-1/2

[Event "Cesenatico Open 2019"]
[Site "Cesenatico"]
[Date "2019.09.04"]
[Round "2"]
[White "Carbone, Stefano"]
[Black "Dragojlovic, Andjelko"]
[Result "1/2-1/2"]
[ECO "A39"]
[WhiteElo "2138"]
[BlackElo "2293"]
[Annotator "ChessBase"]
[PlyCount "23"]
[EventDate "2019.09.01"]
[EventType "swiss"]
[EventCountry "ITA"]
[SourceTitle "playchess.com"]
[Source "ChessBase"]
[SourceQuality "1"]
[TimeControl "40/6000:900"]

1. Nf3 {[%emt 0:00:00]} c5 {[%emt 0:03:00]} 2. c4 {[%emt 0:00:00]} g6 {[%emt 0:00:00]} 3. g3 {[%emt 0:00:00]} Bg7 {[%emt 0:01:00]} 4. Bg2 {[%emt 0:00:00]} Nf6 5. O-O {[%emt 0:00:00]} O-O {[%emt 0:00:00]} 6. d4 {[%emt 0:00:00]} cxd4 {[%emt 0:00:00]} 7. Nxd4 {[%emt 0:00:00]} Nc6 {[%emt 0:00:00]} 8. Nc3 Nxd4 {[%emt 0:01:00]} 9. Qxd4 {[%emt 0:00:00]} d6 {[%emt 0:00:00]} 10. Qd3 {[%emt 0:04:00]} a6 {[%emt 0:01:00]} 11. Bd2 {[%emt 0:16:00]} Bf5 {[%emt 0:00:00]} 12. e4 {[%emt 0:00:00]} 1/2-1/2